bitfinex-derivatives/quotes_SOLF0:USTF0_20241002
["timestamp","ask_amount","ask_price","bid_price","bid_amount"]
[1727891912772,5.54,145.91,145.85,16.57502]
[1727891912972,3.4274,145.89,145.85,16.57502]
[1727891913371,3.4274,145.89,145.86,3.4279]
[1727891914668,3.4279,145.87,145.85,0.12502]
[1727891914974,5.54,145.91,145.85,0.12502]
[1727891915162,3.4274,145.89,145.86,3.428]
[1727891915768,3.4274,145.89,145.86,13.958]
[1727891916573,10.53,145.9,145.86,13.958]
[1727891916773,3.4276,145.88,145.86,13.958]
[1727891917574,13.9576,145.88,145.85,0.12502]
[1727891917773,10.53,145.88,145.85,0.12502]
[1727891918568,10.53,145.86,145.85,0.12502]
[1727891918971,13.9581,145.86,145.85,0.12502]
[1727891922378,5.54,145.87,145.85,0.12502]
[1727891923280,16.07,145.88,145.85,3.55322]
[1727891923776,16.07,145.88,145.85,0.12502]
[1727891925281,3.4281,145.86,145.85,0.12502]
[1727891927981,13.9581,145.86,145.85,0.12502]
[1727891928171,3.4281,145.86,145.85,0.12502]
[1727891934783,13.9581,145.86,145.85,0.12502]
[1727891937595,3.4289,145.83,145.81,3.4291]
[1727891938397,3.4289,145.83,145.8,13.9594]
[1727891939199,10.53,145.84,145.79,1.44972]
[1727891939404,3.4292,145.81,145.79,4.87942]
[1727891939704,10.53,145.83,145.79,11.97972]
[1727891940805,10.53,145.83,145.79,10.65502]
[1727891941105,10.53,145.82,145.79,0.12502]
[1727891941299,3.4294,145.81,145.79,0.12502]
[1727891942001,13.9591,145.82,145.79,3.55462]
[1727891944811,10.53,145.82,145.79,3.55462]
[1727891945008,3.4293,145.81,145.79,3.55462]
[1727891948299,5.54,145.84,145.79,0.12502]
[1727891948503,5.54,145.84,145.79,10.65502]
[1727891948807,16.07,145.84,145.79,10.65502]
[1727891949107,3.429,145.83,145.8,3.4294]
[1727891949410,16.07,145.84,145.79,10.65502]
[1727891949709,16.07,145.84,145.81,3.4291]
[1727891950103,3.4292,145.82,145.79,3.55462]
[1727891950303,10.53,145.83,145.79,0.12502]
[1727891950508,10.53,145.82,145.79,0.12502]
[1727891950709,3.4294,145.81,145.79,0.12502]
[1727891951406,3.4294,145.81,145.79,3.55462]
[1727891951608,3.4294,145.81,145.79,14.08462]
[1727891952313,10.53,145.83,145.79,14.08462]
[1727891952511,10.53,145.83,145.79,10.65502]
[1727891952709,10.53,145.84,145.8,10.53]
[1727891953011,13.9587,145.84,145.8,10.53]
[1727891953201,13.9587,145.84,145.81,3.4292]
[1727891955418,10.53,145.84,145.8,3.4293]
[1727891955714,10.53,145.84,145.79,10.65502]
[1727891956099,10.53,145.84,145.8,3.4294]
[1727891956616,3.4288,145.83,145.8,3.4294]
[1727891958816,3.429,145.82,145.8,3.4294]
[1727891962020,3.4284,145.85,145.81,10.53]
[1727891962209,1.3992,145.86,145.81,10.53]
[1727891962413,10.53,145.85,145.81,10.53]
[1727891962612,10.53,145.85,145.8,10.53]
[1727891962821,10.53,145.84,145.79,0.12502]
[1727891963018,3.4289,145.83,145.79,3.55462]
[1727891963208,10.53,145.84,145.79,0.12502]
[1727891964121,3.4291,145.82,145.79,3.55452]
[1727891964316,1.3839,145.86,145.8,10.53]
[1727891964522,3.4282,145.86,145.83,3.4286]
[1727891964827,18.7581,145.87,145.81,10.53]
[1727891965213,3.4284,145.85,145.83,3.4288]
[1727891965417,10.53,145.87,145.83,10.53]
[1727891965819,3.428,145.87,145.83,10.53]
[1727891966018,16.05,145.88,145.83,10.53]
[1727891967025,3.4282,145.86,145.84,3.4284]
[1727891967322,10.53,145.86,145.83,10.53]
[1727891967709,3.4283,145.85,145.83,13.9586]
[1727891967914,10.53,145.86,145.83,13.9586]
[1727891968325,13.9582,145.86,145.83,13.9586]
[1727891969322,3.4283,145.85,145.83,13.9586]
[1727891970019,13.9582,145.86,145.83,13.9586]
[1727891970223,10.53,145.89,145.84,10.53]
[1727891970418,16.05,145.89,145.84,10.53]
[1727891970617,10.53,145.88,145.84,10.53]
[1727891971022,3.428,145.87,145.85,3.4283]
[1727891973020,10.53,145.86,145.81,6.8498]
[1727891973225,10.53,145.86,145.81,5.52]
[1727891973426,10.53,145.86,145.8,11.8354]
[1727891973619,3.4288,145.83,145.81,3.4291]
[1727891975027,3.4288,145.83,145.8,13.9594]
[1727891975819,10.53,145.81,145.79,0.12502]
[1727891976626,3.4295,145.8,145.79,0.12502]
[1727891980622,13.9595,145.8,145.79,0.12502]
[1727891981126,3.4303,145.77,145.74,13.9608]
[1727891981830,13.9606,145.76,145.73,3.55602]
[1727891982228,10.53,145.75,145.73,0.12502]
[1727891982925,3.4309,145.74,145.73,0.12502]
[1727891983323,10.53,145.75,145.73,0.12502]
[1727891984328,13.9608,145.75,145.73,0.12502]
[1727891984736,13.9609,145.74,145.73,0.12502]
[1727891984930,3.4309,145.74,145.73,0.12502]
[1727891991740,10.53,145.75,145.73,0.12502]
[1727891991940,3.4309,145.74,145.73,0.12502]
[1727891993644,13.9608,145.75,145.73,0.12502]
[1727891993840,10.53,145.75,145.73,0.12502]
[1727891995239,3.4309,145.74,145.73,0.12502]
[1727892000544,13.9609,145.74,145.73,0.12502]
[1727892000744,10.53,145.74,145.67,10.65502]
[1727892001050,3.4319,145.7,145.67,10.65502]
[1727892001250,5.52,145.73,145.69,10.53]
[1727892001744,8.9513,145.73,145.7,3.4317]
[1727892001947,5.52,145.73,145.7,3.4317]
[1727892002148,3.4314,145.72,145.68,10.53]
[1727892002349,16.05,145.73,145.7,3.4318]
[1727892002546,16.05,145.74,145.69,10.53]
[1727892002747,3.4311,145.73,145.69,10.53]
[1727892002951,16.05,145.74,145.71,3.4316]
[1727892003548,10.53,145.73,145.7,3.4317]
[1727892003751,3.4315,145.72,145.68,10.53]
[1727892004160,10.53,145.72,145.68,3.4321]
[1727892004354,13.9621,145.7,145.67,0.12502]
[1727892004652,13.9621,145.7,145.67,3.55752]
[1727892005549,3.4321,145.7,145.67,14.08752]
[1727892005855,10.53,145.71,145.67,10.65502]
[1727892006057,3.4322,145.69,145.67,10.65502]
[1727892006257,10.53,145.71,145.67,10.65502]
[1727892006959,10.53,145.72,145.68,10.53]
[1727892007156,13.9615,145.72,145.69,3.432]
[1727892007654,10.53,145.72,145.68,10.53]
[1727892007861,13.9618,145.71,145.68,3.4322]
[1727892008051,10.53,145.71,145.67,0.12502]
[1727892008449,10.53,145.71,145.67,3.55742]
[1727892008954,3.4323,145.68,145.67,0.12502]
[1727892009258,10.53,145.7,145.67,0.12502]
[1727892009450,3.4322,145.69,145.67,0.12502]
[1727892010956,3.4319,145.7,145.67,3.55742]
[1727892012651,13.9617,145.71,145.68,3.4323]
[1727892012853,3.4317,145.71,145.68,3.4323]
[1727892013253,10.53,145.72,145.68,3.4323]
[1727892013454,3.4319,145.7,145.67,10.65502]
[1727892013759,3.4319,145.7,145.67,14.08742]
[1727892014458,13.9622,145.69,145.67,0.12502]
[1727892014657,10.53,145.69,145.67,0.12502]
[1727892014859,1.387,145.72,145.67,0.12502]
[1727892014860,3.39236683,145.71,145.67,0.12502]
[1727892015163,3.4317,145.71,145.68,10.53]
[1727892015358,10.53,145.7,145.67,0.12502]
[1727892015553,10.53,145.69,145.67,0.12502]
[1727892015754,3.4322,145.69,145.67,0.12502]
[1727892016255,3.4322,145.69,145.67,3.55752]
[1727892018166,10.53,145.74,145.68,10.53]
[1727892018464,16.05,145.74,145.69,10.53]
[1727892018964,3.4312,145.73,145.71,3.4316]
[1727892019559,3.4308,145.75,145.72,3.4312]
[1727892019761,10.53,145.75,145.71,10.53]
[1727892019958,10.53,145.75,145.7,10.53]
[1727892020157,3.4311,145.73,145.7,13.9617]
[1727892020761,3.4315,145.72,145.69,13.9619]
[1727892021061,10.53,145.73,145.69,10.53]
[1727892021462,3.4318,145.71,145.69,10.53]
[1727892021864,3.4315,145.72,145.69,13.9619]
[1727892023259,10.53,145.73,145.69,10.53]
[1727892023463,13.9611,145.74,145.69,10.53]
[1727892023662,10.53,145.74,145.7,10.53]
[1727892023963,10.53,145.75,145.71,10.53]
[1727892024365,5.52,145.77,145.73,3.4309]
[1727892024366,13.9606,145.76,145.73,3.4309]
[1727892024565,10.53,145.76,145.71,10.53]
[1727892024765,10.53,145.75,145.71,10.53]
[1727892024964,3.4309,145.74,145.7,10.53]
[1727892025367,3.4309,145.74,145.71,3.4314]
[1727892025768,2.6625,145.78,145.71,10.53]
[1727892025969,3.4305,145.76,145.72,10.53]
[1727892026173,2.6625,145.78,145.74,10.53]
[1727892026174,10.53,145.78,145.74,10.53]
[1727892026565,10.53,145.77,145.72,10.53]
[1727892027169,10.53,145.77,145.73,3.4309]
[1727892027170,3.4306,145.76,145.73,3.4309]
[1727892027470,0.12502,145.79,145.75,10.53]
[1727892027665,0.12502,145.79,145.78,3.4299]
[1727892028267,0.12502,145.79,145.78,13.9599]
[1727892028559,10.53,145.83,145.78,10.53]
[1727892028764,10.53,145.82,145.76,10.53]
[1727892028963,10.53,145.8,145.77,3.43]
[1727892029271,10.53,145.79,145.75,5.52]
[1727892029470,10.53,145.8,145.77,3.4302]
[1727892029676,10.53,145.8,145.75,16.05]
[1727892030172,3.4293,145.81,145.77,10.53]
[1727892030173,10.53,145.81,145.77,10.53]
[1727892031069,10.53,145.81,145.78,3.4298]
[1727892031273,10.53,145.82,145.78,10.53]
[1727892031570,10.53,145.82,145.79,3.4295]
[1727892031770,5.52,145.84,145.79,3.4295]
[1727892031967,13.9589,145.83,145.78,10.53]
[1727892032170,13.9589,145.83,145.8,3.4294]
[1727892032470,10.53,145.81,145.75,5.52]
[1727892032674,6.98892,145.85,145.76,3.4303]
[1727892032675,10.53,145.79,145.76,3.4303]
[1727892032872,6.98892,145.85,145.76,3.4303]
[1727892032873,6.98892,145.85,145.76,10.53]
[1727892033170,6.98892,145.85,145.74,1.3842]
[1727892033171,10.53,145.81,145.79,3.4296]
[1727892033376,0.12502,145.85,145.8,10.53]
[1727892033676,0.12502,145.85,145.81,10.53]
[1727892033874,10.65502,145.85,145.8,13.9595]
[1727892034069,3.4286,145.84,145.8,10.53]
[1727892034473,3.4286,145.84,145.81,3.4292]
[1727892034670,14.08342,145.85,145.8,10.53]
[1727892035074,14.08342,145.85,145.82,3.4288]
[1727892036579,10.65502,145.85,145.82,3.4288]
[1727892036782,3.4285,145.84,145.82,3.4288]
[1727892036971,10.65502,145.85,145.8,10.53]
[1727892037372,10.53,145.83,145.79,10.53]
[1727892037776,3.4294,145.81,145.79,10.53]
[1727892038283,0.12502,145.85,145.81,3.4291]
[1727892038579,3.4287,145.84,145.8,10.53]
[1727892038781,10.65502,145.85,145.81,10.53]
[1727892039082,14.08342,145.85,145.82,3.4289]
[1727892039474,10.65502,145.85,145.82,3.4289]
[1727892039670,3.4286,145.84,145.81,13.9591]
[1727892039877,10.53,145.83,145.8,10.53]
[1727892040079,10.53,145.83,145.78,2.6603]
[1727892040080,3.4296,145.8,145.78,10.53]
[1727892040280,3.4296,145.8,145.78,3.4298]
[1727892040480,3.4296,145.8,145.77,16.03]
[1727892041379,3.4299,145.79,145.77,10.53]
[1727892041683,10.53,145.79,145.74,13.3269]
[1727892042075,3.4301,145.78,145.76,3.4304]
[1727892042975,10.53,145.79,145.76,3.4304]
[1727892043183,3.43,145.78,145.74,13.3269]
[1727892043382,4.82187214,145.83,145.73,14.08602]
[1727892043383,10.53,145.77,145.73,14.08602]
[1727892043676,3.4302,145.77,145.73,0.12502]
[1727892043882,3.4302,145.77,145.74,3.4308]
[1727892044277,3.4307,145.75,145.73,0.12502]
[1727892044578,16.48,145.79,145.73,0.12502]
[1727892045081,16.48,145.79,145.73,3.55592]
[1727892046182,16.48,145.79,145.73,0.12502]
[1727892046382,3.43,145.78,145.73,0.12502]
[1727892047084,8.186,145.82,145.77,3.43]
[1727892047680,5.5,145.82,145.78,3.4299]
[1727892047877,5.5,145.82,145.76,21.98]
[1727892048884,3.4294,145.81,145.78,3.4298]
[1727892049087,5.5,145.82,145.76,21.98]
[1727892049586,21.98,145.86,145.77,16.48]
[1727892050080,5.5,145.86,145.79,16.48]
[1727892050481,3.55332,145.85,145.82,3.4289]
[1727892050681,0.12502,145.85,145.81,16.48]
[1727892051583,0.12502,145.85,145.82,3.429]
[1727892051885,0.12502,145.85,145.81,16.48]
[1727892052478,0.12502,145.85,145.8,8.2427]
[1727892052681,0.12502,145.85,145.82,3.4288]
[1727892052877,3.55342,145.85,145.82,3.4288]
[1727892053682,0.12502,145.85,145.83,3.4287]
[1727892054286,0.12502,145.85,145.8,8.2427]
[1727892054287,0.12502,145.85,145.84,3.4285]
[1727892055581,0.12502,145.85,145.81,19.92808856]
[1727892055782,0.12502,145.85,145.83,3.4287]
[1727892057080,3.55352,145.85,145.82,3.429]
[1727892057277,0.12502,145.85,145.8,8.2427]
[1727892057683,0.12502,145.85,145.81,3.429]
[1727892057684,3.55342,145.85,145.81,3.429]
[1727892057885,3.55342,145.85,145.8,8.2427]
[1727892058285,3.55342,145.85,145.81,3.429]
[1727892061083,3.55342,145.85,145.82,3.429]
[1727892061885,0.12502,145.85,145.8,8.2427]
[1727892062084,3.4289,145.83,145.8,10.3002]
[1727892062692,3.4289,145.83,145.8,4.8002]
[1727892063385,3.4289,145.83,145.8,1.3709]
[1727892063585,3.4289,145.83,145.81,3.4292]
[1727892063795,0.12502,145.85,145.81,3.4292]
[1727892064087,0.12502,145.85,145.8,1.3709]
[1727892064593,3.429,145.82,145.8,4.8003]
[1727892064983,0.12502,145.85,145.8,1.3709]
[1727892065985,3.4289,145.83,145.8,4.8002]
[1727892066381,0.12502,145.85,145.8,1.3709]
[1727892066587,3.4286,145.84,145.81,3.4291]
[1727892066786,0.12502,145.85,145.8,1.3709]
[1727892067296,0.12502,145.85,145.78,5.5]
[1727892067594,0.12502,145.85,145.78,8.9297]
[1727892067892,0.12502,145.85,145.78,5.5]
[1727892068094,3.4292,145.82,145.79,3.4296]
[1727892070898,0.12502,145.85,145.79,3.4296]
[1727892071097,3.4293,145.81,145.79,3.4296]
[1727892072296,3.55342,145.85,145.82,3.4288]
[1727892072493,3.55342,145.85,145.81,16.48]
[1727892072686,0.12502,145.85,145.81,16.48]
[1727892072992,0.12502,145.85,145.84,3.4285]
[1727892073498,0.12502,145.91,145.84,3.4285]
[1727892073499,3.4275,145.89,145.84,16.48]
[1727892074086,3.4277,145.88,145.84,16.48]
[1727892074393,0.12502,145.91,145.82,20.3415]
[1727892074799,3.4278,145.88,145.85,3.4283]
[1727892075694,3.4275,145.89,145.82,22.4903]
[1727892075901,17.8315,145.9,145.82,19.0615]
[1727892076301,3.428,145.87,145.82,19.0615]
[1727892076688,1.3515,145.9,145.84,16.48]
[1727892076898,3.4276,145.89,145.86,3.428]
[1727892077093,1.3515,145.9,145.84,16.48]
[1727892077293,0.12502,145.91,145.84,21.98]
[1727892077499,3.4274,145.89,145.84,21.98]
[1727892077899,3.4274,145.89,145.86,3.4279]
[1727892078200,3.4274,145.89,145.84,21.98]
[1727892078503,0.12502,145.91,145.86,3.428]
[1727892078504,3.4276,145.88,145.86,3.428]
[1727892079501,3.4276,145.88,145.84,21.98]
[1727892079699,3.4279,145.87,145.85,3.4282]
[1727892080601,3.428,145.87,145.84,8.9283]
[1727892081300,3.4281,145.86,145.84,8.9283]
[1727892081902,1.49392,145.91,145.84,8.9283]
[1727892082104,3.428,145.87,145.84,8.9283]
[1727892083409,3.428,145.87,145.82,19.0615]
[1727892083410,3.4286,145.84,145.82,2.5815]
[1727892083597,19.2333,145.9,145.82,2.5815]
[1727892084304,3.4282,145.86,145.83,3.4286]
[1727892085208,3.4286,145.84,145.81,3.4291]
[1727892085510,21.98,145.88,145.8,21.98]
[1727892086009,21.98,145.88,145.8,5.5]
[1727892086413,3.4289,145.83,145.8,8.9294]
[1727892086603,21.98,145.88,145.8,5.5]
[1727892086806,3.4286,145.84,145.81,3.4291]
[1727892088610,21.98,145.88,145.79,16.60502]
[1727892088811,16.48,145.86,145.79,0.12502]
[1727892089009,16.48,145.84,145.79,0.12502]
[1727892089200,5.5,145.83,145.79,0.12502]
[1727892089508,3.4295,145.8,145.79,0.12502]
[1727892090010,11.58826694,145.83,145.73,5.62502]
[1727892090011,3.4305,145.76,145.73,5.62502]
[1727892090205,16.48,145.81,145.73,5.62502]
[1727892090603,16.48,145.81,145.74,3.4307]
[1727892090604,3.4303,145.77,145.74,3.4307]
[1727892090809,16.48,145.81,145.74,3.4307]
[1727892091209,3.4303,145.77,145.74,3.4307]
[1727892091410,16.48,145.81,145.73,5.62502]
[1727892091709,16.48,145.81,145.73,3.55612]
[1727892091915,16.48,145.79,145.73,0.12502]
[1727892092213,5.5,145.78,145.73,0.12502]
[1727892093014,3.4309,145.74,145.73,0.12502]
[1727892096418,3.4304,145.76,145.73,3.55602]
[1727892096611,6.8845,145.78,145.73,0.12502]
[1727892096811,22.56826694,145.83,145.73,16.60502]
[1727892097015,3.4294,145.81,145.78,3.4299]
[1727892097214,1.3775,145.83,145.77,16.48]
[1727892097510,6.7736,145.84,145.77,16.48]
[1727892097812,6.7736,145.84,145.8,3.4294]
[1727892098218,3.429,145.83,145.8,3.4294]
[1727892098423,6.7736,145.84,145.77,16.48]
[1727892098612,6.7736,145.84,145.79,3.4296]
[1727892098812,3.4293,145.81,145.79,3.4296]
[1727892101317,3.4291,145.82,145.79,3.4296]
[1727892103013,3.4293,145.81,145.79,3.4296]
[1727892103322,6.7736,145.84,145.76,5.5]
[1727892103625,9.3376,145.84,145.76,5.5]
[1727892103821,9.3376,145.84,145.73,16.60502]
[1727892104121,9.3376,145.84,145.74,5.5]
[1727892104122,16.48,145.82,145.74,5.5]
[1727892104325,9.3376,145.84,145.73,3.55602]
[1727892104326,3.4306,145.76,145.73,3.55602]
[1727892105022,3.4309,145.74,145.73,0.12502]
[1727892105323,16.48,145.79,145.73,0.12502]
[1727892106023,3.8847,145.78,145.73,0.12502]
[1727892107320,3.4309,145.74,145.73,0.12502]
[1727892115536,3.4321,145.69,145.67,0.12502]
[1727892115731,16.48,145.75,145.67,3.55742]
[1727892116132,16.48,145.75,145.67,0.12502]
[1727892116441,16.48,145.75,145.69,3.4319]
[1727892116933,16.48,145.75,145.67,16.60502]
[1727892117936,16.48,145.75,145.69,3.432]
[1727892118131,5.5,145.74,145.69,3.432]
[1727892118833,3.4316,145.71,145.69,3.432]
[1727892119035,3.8847,145.78,145.67,16.60502]
[1727892119336,8.94236973,145.77,145.69,16.48]
[1727892119536,3.4315,145.72,145.69,16.48]
[1727892119732,3.4315,145.72,145.7,3.4318]
[1727892120841,3.35552962,145.76,145.69,16.48]
[1727892121139,16.48,145.74,145.68,5.5]
[1727892121650,3.4318,145.71,145.68,8.9322]
[1727892125344,3.4318,145.7,145.68,8.9322]
[1727892126751,21.98,145.73,145.67,0.12502]
[1727892126946,5.5,145.73,145.67,0.12502]
[1727892127145,3.4315,145.72,145.7,3.4318]
[1727892127545,16.48,145.77,145.69,16.48]
[1727892127850,5.5,145.77,145.71,16.48]
[1727892128548,5.5,145.77,145.69,21.98]
[1727892128745,9.01774315,145.77,145.69,21.98]
[1727892128944,16.48,145.76,145.68,2.7917]
[1727892129143,16.48,145.76,145.67,22.10502]
[1727892129344,16.48,145.74,145.67,5.62502]
[1727892129547,16.48,145.72,145.67,0.12502]
[1727892130744,3.4319,145.7,145.68,3.4322]
[1727892130943,3.4319,145.7,145.67,0.12502]
[1727892131143,3.4321,145.69,145.67,3.55752]
[1727892132949,3.4323,145.68,145.67,0.12502]
[1727892133745,3.4333,145.64,145.61,0.12502]
[1727892133944,21.98,145.69,145.61,3.55872]
[1727892134143,21.98,145.69,145.61,0.12502]
[1727892134540,21.98,145.69,145.62,3.4337]
[1727892135952,21.98,145.69,145.61,0.12502]
[1727892136151,3.4329,145.66,145.63,3.4335]
[1727892136349,21.98,145.69,145.61,0.12502]
[1727892136653,3.433,145.66,145.62,3.4336]
[1727892137055,21.98,145.69,145.62,3.4336]
[1727892137354,3.433,145.65,145.62,3.4336]
[1727892138052,5.5,145.69,145.61,16.60502]
[1727892138457,5.5,145.69,145.63,16.48]
[1727892138758,3.432,145.7,145.67,3.4324]
[1727892138948,5.5,145.72,145.67,3.4324]
[1727892139149,3.4322,145.69,145.66,3.4327]
[1727892142559,5.5,145.72,145.65,16.48]
[1727892142853,5.5,145.72,145.67,16.48]
[1727892143059,8.9314,145.72,145.69,3.4319]
[1727892143359,8.9314,145.72,145.67,16.48]
[1727892143753,0.12502,145.73,145.67,16.48]
[1727892143953,0.12502,145.73,145.68,5.5]
[1727892144152,0.12502,145.73,145.69,16.48]
[1727892144554,0.12502,145.73,145.71,3.4314]
[1727892144755,0.12502,145.73,145.69,16.48]
[1727892144964,0.12502,145.73,145.71,16.48]
[1727892145360,0.12502,145.73,145.72,3.4314]
[1727892146960,0.12502,145.73,145.69,16.48]
[1727892147260,3.4318,145.71,145.67,23.2599]
[1727892147462,0.12502,145.73,145.67,6.7799]
[1727892149159,0.12502,145.73,145.67,10.2123]
[1727892149568,3.4317,145.71,145.67,10.2123]
[1727892150054,3.4317,145.71,145.68,3.4323]
[1727892153457,3.55622,145.73,145.71,3.4316]
[1727892154067,3.55622,145.73,145.7,3.4317]
[1727892154257,0.12502,145.73,145.69,16.48]
[1727892154665,0.12502,145.73,145.72,3.4314]
[1727892155257,16.48,145.8,145.73,16.48]
[1727892155654,3.4302,145.77,145.73,16.48]
[1727892155861,3.4302,145.77,145.74,3.4308]
[1727892157364,3.4302,145.77,145.73,16.48]
[1727892157568,3.43,145.78,145.75,3.4307]
[1727892157961,16.48,145.8,145.73,16.48]
[1727892158168,3.55482,145.79,145.76,3.4304]
[1727892158461,0.12502,145.79,145.73,16.48]
[1727892158767,3.4301,145.78,145.75,3.4306]
[1727892160667,0.12502,145.79,145.72,1.2763]
[1727892161259,3.4306,145.76,145.74,3.4309]
[1727892161667,3.4306,145.76,145.72,1.2763]
[1727892161870,3.4306,145.76,145.73,3.431]
[1727892163566,3.4307,145.75,145.73,3.431]
[1727892163765,3.4307,145.75,145.72,4.7075]
[1727892166074,0.12502,145.79,145.72,1.2763]
[1727892166274,3.4306,145.76,145.73,3.4311]
[1727892166773,3.4303,145.77,145.74,3.4307]
[1727892167266,0.12502,145.79,145.74,3.4309]
[1727892167974,3.4306,145.76,145.73,3.4311]
[1727892168470,3.4306,145.76,145.72,1.2763]
[1727892168670,0.12502,145.79,145.74,3.4307]
[1727892168671,3.4303,145.77,145.74,3.4307]
[1727892168870,0.12502,145.79,145.74,3.4307]
[1727892170277,0.12502,145.79,145.75,3.4305]
[1727892171064,3.43,145.78,145.75,3.4305]
[1727892171673,0.12502,145.79,145.75,3.4305]
[1727892171883,3.4302,145.77,145.75,3.4305]
[1727892172965,3.4301,145.78,145.76,3.4303]
[1727892175373,3.55492,145.79,145.76,3.4303]
[1727892176071,3.43,145.78,145.76,3.4303]
[1727892176775,0.12502,145.79,145.78,3.4299]
[1727892180484,0.12502,145.85,145.77,16.48]
[1727892180783,0.12502,145.85,145.82,3.4289]
[1727892182275,3.4285,145.84,145.82,3.4289]
[1727892185085,0.12502,145.85,145.82,3.4289]
[1727892185291,0.12502,145.85,145.83,3.4287]
[1727892186178,3.4287,145.84,145.81,3.4291]
[1727892186376,3.4287,145.84,145.8,21.96]
[1727892186782,3.4287,145.84,145.81,3.4291]
[1727892187186,3.4289,145.83,145.81,3.4291]
[1727892187392,0.12502,145.85,145.79,5.48]
[1727892187987,0.12502,145.85,145.78,6.8159]
[1727892189496,3.4294,145.81,145.79,3.4297]
[1727892190888,0.12502,145.85,145.78,5.48]
[1727892190889,3.4296,145.8,145.78,5.48]
[1727892191999,5.60502,145.85,145.77,16.48]
[1727892192200,3.4299,145.79,145.77,16.48]
[1727892192405,20.5017,145.84,145.75,16.48]
[1727892192594,20.5017,145.84,145.73,1.52012]
[1727892192595,16.48,145.82,145.73,16.60502]
[1727892192896,16.48,145.8,145.73,0.12502]
[1727892193097,16.48,145.82,145.73,16.60502]
[1727892193393,3.4298,145.79,145.75,16.48]
[1727892193800,3.4298,145.79,145.77,3.4302]
[1727892194099,3.4295,145.8,145.77,3.4302]
[1727892194603,20.5017,145.84,145.79,3.4297]
[1727892194604,3.4293,145.81,145.79,3.4297]
[1727892194803,0.12502,145.85,145.79,16.48]
[1727892195192,3.4289,145.83,145.8,3.4294]
[1727892195599,3.4292,145.82,145.79,19.9096]
[1727892195805,0.12502,145.85,145.77,16.48]
[1727892196002,17.8785,145.84,145.76,2.7411]
[1727892196496,19.1498,145.84,145.76,2.7411]
[1727892196700,16.48,145.82,145.73,16.60502]
[1727892196899,21.96,145.82,145.74,5.48]
[1727892197597,3.4303,145.77,145.74,5.48]
[1727892197802,3.4303,145.77,145.74,8.9108]
[1727892197996,16.48,145.82,145.74,5.48]
[1727892198200,3.43,145.78,145.76,3.4303]
[1727892198595,3.43,145.78,145.75,16.48]
[1727892198893,3.43,145.78,145.75,19.9106]
[1727892199097,3.4295,145.8,145.75,19.9106]
[1727892199398,5.48,145.82,145.75,19.9106]
[1727892199599,3.4303,145.77,145.74,8.9108]
[1727892199806,21.96,145.82,145.74,8.9108]
[1727892200301,16.48,145.8,145.73,0.12502]